[Event "Israeli Team-ch 2023"]
[Site "Petah Tikva"]
[Date "2023.02.10"]
[Round "7.27"]
[White "Rozen, Eytan"]
[Black "Alekseev, Evgeny"]
[Result "1/2-1/2"]
[ECO "D02"]
[WhiteElo "2440"]
[BlackElo "2575"]
[Annotator "TA"]
[PlyCount "189"]
[EventDate "2023.01.13"]
[EventCountry "ISR"]
[SourceTitle "playchess.com"]
[Source "ChessBase"]
[SourceQuality "1"]
[TimeControl "40/5400+30:1800+30"]

{[%evp 18,189,14,0,25,8,39,36,31,0,11,0,27,-8,1,0,-8,-18,-19,-19,-34,-40,-7,-41,0,-109,-74,-306,0,-62,-53,-115,-108,-125,-120,-104,-101,-149,-151,-134,-123,-152,-49,-54,-58,-100,-99,-89,-66,-66,-66,-66,-66,-66,-66,-83,-97,-127,-127,-163,-159,-250,-250,-247,-101,-101,-101,-248,-248,-248,-241,-238,-215,-231,-8,-14,-8,-8,-14,-28,-8,-12,-20,-35,0,0,0,0,0,0,0,0,0,0,0,0,0,0,0,-8,0,-8,0,-8,-8,-8,-8,-8,0,-69,-69,-69,-8,-8,-8,-69,-69,-69,-8,-8,-8,-8,0,-8,0,0,0,0,0,0,0,0,0,0,0,0,0,0,0,0,0,0,0,0,0,0,0,0,0,0,0,0,0,0,0,-8,0,0,0,0,0,0,0,0,0,0,0,0,0,0,0,0,0,0]} 1. d4 {[%emt 0:00:13]} Nf6 {[%emt 0:00:27]} 2. Bf4 {[%emt 0:02:21]} e6 {[%emt 0:04:26]} 3. e3 {[%emt 0:00:56]} d5 {[%emt 0:02:51]} 4. Nd2 {[%emt 0:00:33]} c5 {[%emt 0:01:13]} 5. c3 {[%emt 0:01:34]} Nc6 {[%emt 0:01:24]} 6. Ngf3 {[%emt 0:03:28]} cxd4 {[%emt 0:02:32]} 7. exd4 {[%emt 0:00:11]} Nh5 {[%emt 0:00:07]} 8. Be3 {[%emt 0:00:10]} Bd6 {[%emt 0:00:23]} 9. Ne5 {[%emt 0:00:08]} g6 {[%emt 0:00:19]} 10. g4 {[%emt 0:00:14]} Ng7 {[%emt 0:02:04]} 11. h4 {[%emt 0:00:13]} f6 {[%emt 0:13:13]} 12. Nxc6 {[%emt 0:09:22]} bxc6 {[%emt 0:00:16]} 13. h5 {[%emt 0:02:29]} gxh5 {[%emt 0:01:51]} 14. Bd3 {[%emt 0:03:18]} e5 {[%emt 0:06:01]} 15. gxh5 {[%emt 0:02:46]} Nf5 {[%emt 0:14:04]} (15... e4 $5 16. Nxe4 dxe4 17. Bxe4 Rb8 $15) 16. Qf3 {[%emt 0:05:39]} Nxe3 {[%emt 0:47:19]} 17. fxe3 {[%emt 0:03:02]} e4 {[%emt 0:00:00]} 18. Nxe4 $1 {[%emt 0:00:17]} dxe4 {[%emt 0:00:00]} 19. Bxe4 {[%emt 0:02:58]} O-O {[%emt 0:00:00]} 20. O-O-O {[%emt 0:06:57]} (20. Bxc6 $5 Rb8 $8 21. Bd5+ Kh8 22. O-O-O $11) 20... Kh8 {[%emt 0:00:00]} 21. Rdg1 {[%emt 0:04:48]} (21. Bxc6 $11 {remains equal.} Rb8 22. Bd5) 21... Rb8 {[%emt 0:00:00]} 22. Bxh7 $2 {[%emt 0:16:32]} (22. Bc2 $17) 22... Rb5 $2 {[%emt 0:00:00]} (22... Kxh7 $19 23. h6 Rb5 24. Rg7+ Kh8 25. Qxc6 Qe8 26. Qxe8 (26. Qxd6 Qxe3+ 27. Kd1 Qf3+ 28. Ke1 Qxh1+ 29. Ke2 Rxb2+ 30. Kd3 Bf5+ 31. Kc4 Qf1+ 32. Kd5 Qb5+ 33. Qc5 Rd8+) 26... Rxe8) 23. Bd3 {[%emt 0:05:17]} (23. Qxc6 a6 24. a4 (24. Qg2 $2 Rg5 $19) 24... Bb7 $17) (23. Qg2 $2 Rg5 24. Qc2 Rxg1+ 25. Rxg1 Qe7 $19) (23. Be4 $11) 23... Rg5 $1 $15 {[%emt 0:00:00]} 24. Qxc6 {[%emt 0:13:08]} (24. Kb1 $15) 24... Qe7 $1 $17 {[%emt 0:00:00]} 25. Qe4 {[%emt 0:02:06]} Qxe4 $1 {[%emt 0:00:00]} 26. Bxe4 {[%emt 0:00:02]} Re8 {[%emt 0:00:00]} 27. Bg6 {[%emt 0:00:33]} (27. Rxg5 $2 fxg5 28. Bd5 Rxe3 $19) ({White should try} 27. Bc2) 27... Rxe3 $17 {[%emt 0:00:00]} 28. Re1 {[%emt 0:00:07]} Rgg3 {[%emt 0:00:00]} 29. Rhf1 {[%emt 0:05:11]} Kg7 {[%emt 0:00:00]} ({Better is} 29... Rxe1+ $1 $17 30. Rxe1 Bd7) 30. Rxe3 $15 {[%emt 0:02:18]} Rxe3 {[%emt 0:00:00]} 31. Bf5 {[%emt 0:01:22]} Ba6 {[%emt 0:00:00]} 32. h6+ {[%emt 0:00:50]} Kxh6 {[%emt 0:00:06]} 33. Bd3 $1 {[%emt 0:00:22]} Bxd3 {[%emt 0:00:22]} 34. Rxf6+ {[%emt 0:00:01]} Kg5 {[%emt 0:00:13]} 35. Rxd6 {[%emt 0:00:07]} Re2 {[%emt 0:00:08]} 36. Rd7 {[%emt 0:03:12]} a6 {[%emt 0:00:59]} 37. d5 {[%emt 0:01:36]} Rc2+ {[%emt 0:01:17]} 38. Kd1 {[%emt 0:00:01]} Rxb2 {[%emt 0:00:10]} 39. d6 {[%emt 0:00:48]} (39. Re7 $17) 39... Kf6 $19 {[%emt 0:00:58]} ({Don't do} 39... Rxa2 40. Rg7+ Kf6 41. d7 Kxg7 42. d8=Q (42. d8=R $2 {too greedy.} Bc4 $19) 42... Bc2+ 43. Ke1 Ra1+ 44. Ke2 $18) 40. Rc7 {[%emt 0:02:38]} Rb6 {[%emt 0:06:39]} ({Not} 40... Rxa2 41. c4) (40... Ke6 $1 $19 41. d7 Ke7) 41. c4 $17 {[%emt 0:02:52]} Rxd6 {[%emt 0:00:29]} 42. c5 {[%emt 0:00:03]} (42. Kc1 $17) 42... Re6 $1 $19 {[%emt 0:02:05]} 43. Rd7 {[%emt 0:00:30] [#]} Be2+ $1 {[%emt 0:00:02]} 44. Kd2 {[%emt 0:00:13]} Re4 {[%emt 0:02:48]} 45. c6 {[%emt 0:12:47] [#]} Bg4 $2 {[%emt 0:28:14]} (45... Bb5 $1 $19 {[%cal Of6e6] Strongly threatening ...Ke6!} 46. Rh7 Rc4) 46. Ra7 $11 {[%emt 0:08:54]} Bc8 {[%emt 0:00:00]} 47. Kc3 {[%emt 0:01:19]} Ra4 {[%emt 0:00:00]} 48. Kb3 {[%emt 0:01:14]} Ra5 {[%emt 0:00:00]} (48... Rf4 $5 49. Ra8 $8 Be6+ 50. Ka3 Ke5 $11) 49. Ra8 {[%emt 0:02:02]} Be6+ {[%emt 0:00:00]} 50. Kb4 {[%emt 0:00:02]} Rxa2 {[%emt 0:00:00]} 51. c7 {[%emt 0:00:21]} Rc2 {[%emt 0:00:00]} 52. Rxa6 {[%emt 0:00:18]} Rc4+ {[%emt 0:00:00]} 53. Kb5 {[%emt 0:00:41]} Rxc7 {[%emt 0:00:00]} 54. Ra1 {[%emt 0:00:54]} Ke5 {[%emt 0:00:00]} 55. Rh1 {[%emt 0:01:54]} Bd5 {[%emt 0:00:00]} 56. Rh5+ {[%emt 0:00:13]} Kd4 {[%emt 0:00:00]} 57. Rh4+ {[%emt 0:00:04]} Be4 {[%emt 0:00:00]} 58. Kb4 {[%emt 0:00:13]} Rb7+ {[%emt 0:00:00]} 59. Ka4 {[%emt 0:00:01]} Rb8 {[%emt 0:00:00]} 60. Rg4 {[%emt 0:00:16]} Kd5 {[%emt 0:00:00]} 61. Ka3 {[%emt 0:00:01]} Bd3 {[%emt 0:00:00]} 62. Rb4 {[%emt 0:00:02]} Rh8 {[%emt 0:00:00]} 63. Kb2 {[%emt 0:01:17]} (63. Kb3 $11) 63... Bc4 $1 $15 {[%emt 0:00:00]} 64. Rb7 {[%emt 0:00:27]} Kd4 {[%emt 0:00:00]} ({Black should play} 64... Rh2+ $15 65. Kc3 Rh3+ 66. Kd2 Kd4) 65. Rd7+ $11 {[%emt 0:00:06]} Bd5 {[%emt 0:00:00]} 66. Kc2 {[%emt 0:00:03]} (66. Rg7 $1 $11) 66... Rh2+ $15 {[%emt 0:00:00]} 67. Kd1 {[%emt 0:00:03]} Ke4 {[%emt 0:00:00]} (67... Kc4 $15) 68. Kc1 $1 $11 {[%emt 0:00:01]} Bc4 {[%emt 0:00:04]} 69. Rd2 {[%emt 0:00:01]} Rh3 {[%emt 0:00:15]} 70. Rd8 {[%emt 0:00:51]} Ke3 {[%emt 0:01:02]} 71. Kc2 {[%emt 0:00:20]} Rh6 {[%emt 0:01:08]} 72. Kc3 {[%emt 0:00:58]} Rc6 {[%emt 0:00:11]} 73. Rh8 {[%emt 0:00:29]} Bd3+ {[%emt 0:01:43]} 74. Kb4 {[%emt 0:00:06]} Be4 {[%emt 0:00:34]} 75. Rh3+ {[%emt 0:00:13]} Kd4 {[%emt 0:00:05]} 76. Rh4 {[%emt 0:00:05]} Rb6+ {[%emt 0:00:22]} 77. Ka4 {[%emt 0:00:02]} Rg6 {[%emt 0:00:09]} 78. Kb4 {[%emt 0:00:04]} Ra6 {[%emt 0:00:29]} 79. Kb5 {[%emt 0:00:10]} Ra1 {[%emt 0:00:22]} 80. Kb4 {[%emt 0:00:01]} Rc1 {[%emt 0:01:46]} 81. Kb5 {[%emt 0:01:03]} Rb1+ {[%emt 0:01:54]} 82. Ka4 {[%emt 0:00:03]} Kd5 {[%emt 0:00:10]} 83. Ka3 {[%emt 0:00:00]} Rb7 {[%emt 0:00:13]} 84. Rg4 {[%emt 0:00:29]} Rb8 {[%emt 0:00:24]} 85. Rh4 {[%emt 0:00:06]} Bd3 {[%emt 0:00:05]} 86. Rb4 {[%emt 0:00:06]} Ra8+ {[%emt 0:00:09]} 87. Kb3 {[%emt 0:00:45]} Rc8 {[%emt 0:00:36]} 88. Rh4 {[%emt 0:00:45]} Ra8 {[%emt 0:00:08]} 89. Rh5+ {[%emt 0:00:29]} Kd4 {[%emt 0:00:07]} 90. Rh4+ {[%emt 0:00:01]} Ke3 {[%emt 0:00:09]} 91. Rh3+ {[%emt 0:00:08]} Kd2 {[%emt 0:00:03]} 92. Kb4 {[%emt 0:01:00]} Rc8 {[%emt 0:00:03]} 93. Rh2+ {[%emt 0:00:14]} Be2 {[%emt 0:00:06]} 94. Rh4 {[%emt 0:00:11]} Kd3 {[%emt 0:00:07]} 95. Rh3+ {[%emt 0:00:09]} 1/2-1/2

[Event "Israeli Team-ch 2023"]
[Site "Petah Tikva"]
[Date "2023.02.10"]
[Round "7.30"]
[White "Golod, Vitali"]
[Black "Mindlin, Alon"]
[Result "1/2-1/2"]
[ECO "E35"]
[WhiteElo "2501"]
[BlackElo "2432"]
[Annotator "TA"]
[PlyCount "37"]
[EventDate "2023.01.13"]
[EventCountry "ISR"]
[SourceTitle "playchess.com"]
[Source "ChessBase"]
[SourceQuality "1"]
[TimeControl "40/5400+30:1800+30"]

{[%evp 12,37,4,2,0,0,13,16,8,16,15,5,38,0,30,0,0,-12,43,0,77,69,72,16,21,12,20,-33]} 1. d4 {[%emt 0:00:50]} Nf6 {[%emt 0:00:06]} 2. c4 {[%emt 0:00:46]} e6 {[%emt 0:00:07]} 3. Nc3 {[%emt 0:00:24]} Bb4 {[%emt 0:00:10]} 4. Qc2 {[%emt 0:00:53]} d5 {[%emt 0:00:06]} 5. cxd5 {[%emt 0:04:47]} exd5 {[%emt 0:00:07]} 6. Bg5 {[%emt 0:00:12][%cal Bc1g5,Bg5h4,Bh4g3,Bg3e5][%mdl 32]} h6 {[%emt 0:01:40][%cal Bh7h6,Bh6h5,Bh5h4][%mdl 32]} 7. Bh4 $1 {[%emt 0:01:54] The main line 7.Bh4 scores better than 7.Bxf6.} Nc6 {[%emt 0:08:47] E35: Nimzo-Indian: Classical: 4...d5 5 cxd5 exd5.} 8. e3 {[%emt 0:01:52]} g5 {[%emt 0:03:11]} 9. Bg3 {[%emt 0:00:17]} h5 {[%emt 0:00:36]} 10. Bb5 {[%emt 0:12:22]} h4 {[%emt 0:03:00]} 11. Be5 {[%emt 0:01:38]} Rh6 {[%emt 0:15:29]} 12. h3 {[%emt 0:11:35]} Ne4 {[%emt 0:19:30] [#]} (12... Bd7 $5 {[%cal Rc6e5]}) 13. f3 $146 {[%emt 0:03:33]} ({Predecessor:} 13. Nge2 Bf5 14. Qb3 Bxc3+ 15. Nxc3 Nxc3 16. bxc3 Qd7 17. Bh2 O-O-O 18. Qa4 Rg8 19. f3 {0-1 Sjugirov,S (2663)-Yu,Y (2764) Wch Rapid St Petersburg 2018 (9)}) 13... Nd6 {[%emt 0:03:39]} 14. Bd3 {[%emt 0:14:08]} Re6 {[%emt 0:09:45]} ({Black should play} 14... Qe7 $11) 15. Nge2 {[%emt 0:01:01] f4 would be deadly.} (15. f4 $5) 15... f6 {[%emt 0:04:02] Dodges f4} ({Don't do} 15... Nxe5 16. dxe5 Bxc3+ 17. Qxc3 $16) (15... Ba5 $11 {keeps the balance.}) 16. Bxd6 {[%emt 0:00:56]} Qxd6 {[%emt 0:02:24]} 17. a3 {[%emt 0:03:18]} (17. Bg6+ $16 Kf8 18. O-O Rxe3 19. f4) 17... Bxc3+ $1 $11 {[%emt 0:03:51]} 18. Qxc3 {[%emt 0:01:40][%cal Of3f4]} Bd7 {[%emt 0:00:03]} 19. e4 {[%emt 0:09:36] Weighted Error Value: White=0.21 (precise) /Black=0.20 (precise)} (19. Bg6+ $11 Kf8 20. O-O) 1/2-1/2

[Event "Israeli Team-ch 2023"]
[Site "Petah Tikva"]
[Date "2023.02.10"]
[Round "7.32"]
[White "Parkhov, Yair"]
[Black "Shohat, Yotam"]
[Result "1-0"]
[ECO "E71"]
[WhiteElo "2467"]
[BlackElo "2284"]
[Annotator "TA"]
[PlyCount "127"]
[EventDate "2023.01.13"]
[EventCountry "ISR"]
[SourceTitle "playchess.com"]
[Source "ChessBase"]
[SourceQuality "1"]
[TimeControl "40/5400+30:1800+30"]

{[%evp 11,127,29,39,31,44,44,54,51,54,79,69,77,57,37,15,0,0,0,34,26,40,43,69,60,93,96,86,89,87,85,95,93,145,114,112,100,156,119,160,166,213,191,205,181,172,178,165,163,169,142,218,223,232,233,233,199,334,337,489,482,448,352,441,412,373,0,424,0,385,371,456,362,443,363,417,399,377,162,350,165,736,710,790,790,1095,1137,1372,1306,1113,1113,983,889,889,852,8182,8024,4133,2793,29963,29964,29973,29974,29973,29974,29973,29975,29977,29978,29978,29979,29979,29980,29979,29981,29981,29982,29983,29984]} 1. d4 {[%emt 0:00:02]} Nf6 {[%emt 0:02:56]} 2. c4 {[%emt 0:00:05]} g6 {[%emt 0:00:13]} 3. Nc3 {[%emt 0:00:04]} Bg7 {[%emt 0:00:04]} 4. e4 {[%emt 0:00:05]} O-O {[%emt 0:00:04]} 5. Be3 {[%emt 0:00:07]} d6 {[%emt 0:00:06]} 6. h3 {[%emt 0:00:48]} Na6 {[%emt 0:00:23]} 7. g4 {[%emt 0:00:08] E71: King's Indian: 4 e4 d6 5 h3.} c6 {[%emt 0:00:33] 7...e5 is becoming the main line.} 8. Nge2 {[%emt 0:01:26]} Rb8 {[%emt 0:07:49]} 9. Ng3 {[%emt 0:06:43] White is slightly better.} b5 {[%emt 0:08:57]} 10. cxb5 {[%emt 0:13:18]} cxb5 {[%emt 0:00:02] [#]} 11. Bxb5 $146 {[%emt 0:02:44]} ({Predecessor:} 11. Bg2 b4 12. Nce2 Bd7 13. O-O Bb5 14. f4 Qa5 15. f5 Rfd8 16. g5 Nd7 17. h4 {1-0 Krejci,J (2520)-Stalmach,R (2350) CZE-ch Usti nad Labem 2022 (8)}) 11... Nc7 {[%emt 0:06:17]} 12. Be2 {[%emt 0:04:28]} Rxb2 {[%emt 0:00:51]} 13. Rb1 {[%emt 0:01:12]} Rxb1 {[%emt 0:00:31]} 14. Qxb1 {[%emt 0:00:07]} Ba6 {[%emt 0:02:50]} 15. O-O {[%emt 0:02:06]} Bxe2 {[%emt 0:04:01]} 16. Ncxe2 {[%emt 0:01:16]} Nd7 {[%emt 0:13:42]} 17. Rc1 {[%emt 0:07:57]} Nb6 {[%emt 0:09:25]} 18. d5 {[%emt 0:02:15]} Na6 {[%emt 0:04:34]} 19. Qb5 {[%emt 0:04:58] Inhibits Nd7.} Nc5 {[%emt 0:00:55]} 20. Bxc5 {[%emt 0:01:38]} dxc5 {[%emt 0:00:02]} 21. Qxc5 {[%emt 0:00:47]} Be5 {[%emt 0:10:37]} (21... e6 $142) 22. f4 {[%emt 0:09:07]} Bb8 {[%emt 0:00:06]} 23. Qc6 {[%emt 0:03:25]} Re8 {[%emt 0:10:45] Black is weak on the light squares} (23... Bd6 $142) 24. Kg2 {[%emt 0:06:14] White has more active pieces.} Bd6 {[%emt 0:08:19]} 25. e5 {[%emt 0:06:36]} Bb8 {[%emt 0:00:06]} (25... Bb4 $142) 26. Nc3 {[%emt 0:02:20][%cal Be2c3,Bc3b5,Bb5d4,Bd4f5][%mdl 32]} Qc8 {[%emt 0:03:23]} 27. Nb5 {[%emt 0:07:07]} Qxc6 {[%emt 0:00:07]} 28. dxc6 {[%emt 0:00:06]} a6 {[%emt 0:00:04]} 29. Nd4 {[%emt 0:00:47] Hoping for c7.} Rd8 {[%emt 0:00:49]} 30. Nge2 {[%emt 0:05:04] And now c7 would win.} (30. c7 $6 Bxc7 31. Nde2 (31. Rxc7 Rxd4 32. Rxe7 Rxf4 $11) 31... Nd5 $11) 30... Nd5 {[%emt 0:01:14]} (30... Bc7 $16 {is a better defense.} 31. h4 e6) 31. Kf3 $18 {[%emt 0:00:52]} g5 {[%emt 0:00:10]} 32. Nf5 {[%emt 0:01:30] Strongly threatening Rd1.} (32. fxg5 Bxe5 33. Rb1 e6) 32... Kf8 {[%emt 0:04:28]} 33. Rd1 {[%emt 0:05:04] aiming for Nc3.} (33. fxg5 $6 Bxe5 34. Ke4 Bc7) 33... e6 {[%emt 0:00:05]} (33... Bc7 $142 34. Ne3 (34. fxg5 e6 $16) 34... Nb4) 34. Ne3 {[%emt 0:00:04]} Ke7 {[%emt 0:00:04]} (34... Bc7 $142 35. Nxd5 (35. fxg5 Nb4 $16) 35... exd5) 35. Nxd5+ {[%emt 0:02:09]} (35. fxg5 Nb4 $16) 35... exd5 {[%emt 0:01:58][%mdl 4096] Endgame KRB-KRN} 36. Nd4 {[%emt 0:00:13] Black must now prevent c7.} (36. fxg5 Bxe5 37. Ke3 Rd6 $16) 36... Rc8 {[%emt 0:00:54]} 37. Nf5+ {[%emt 0:02:44][%mdl 64] Discovered Attack} (37. fxg5 Bxe5 38. Re1 Kd6 39. Nf5+ Ke6 40. Nd4+ Kd6 41. Nf5+ Ke6 $16) 37... Ke6 {[%emt 0:00:09]} 38. Nd4+ {[%emt 0:01:17]} (38. fxg5 Bxe5 39. Rc1 (39. Re1 f6 $16) 39... f6 $16) 38... Ke7 {[%emt 0:00:02]} 39. Nf5+ {[%emt 0:00:53][%mdl 64] Discovered Attack} (39. fxg5 Bxe5 40. Re1 Kd6 41. Nf5+ Ke6 $16) 39... Ke6 {[%emt 0:00:01]} 40. Re1 {[%emt 0:00:58]} (40. fxg5 Bxe5 41. Rc1 (41. Re1 f6 $16) 41... f6 $16) 40... gxf4 {[%emt 0:01:43]} 41. Nd4+ {[%emt 0:30:04]} (41. Kxf4 f6 $16) 41... Ke7 {[%emt 0:30:06]} 42. g5 {[%emt 0:00:00]} ({Not} 42. Kxf4 f6 $16) 42... Ba7 {[%emt 0:00:00] [#]} 43. Nf5+ {[%emt 0:00:00]} Ke6 {[%emt 0:00:00]} 44. Ng7+ {[%emt 0:00:00]} Ke7 {[%emt 0:00:00]} 45. Rc1 {[%emt 0:00:00]} (45. Kxf4 Rxc6 46. Rb1 Bb6 $14) (45. Rb1 $142) 45... Be3 $2 {[%emt 0:00:00]} (45... d4 46. Kxf4 d3) 46. Nf5+ {[%emt 0:00:00]} Ke6 {[%emt 0:00:00]} 47. Nxe3 {[%emt 0:00:00]} fxe3 {[%emt 0:00:00]} 48. Kxe3 {[%emt 0:00:00]} Kxe5 {[%emt 0:00:00] [#] KR-KR} 49. c7 $1 {[%emt 0:00:00]} f6 {[%emt 0:00:00]} 50. h4 {[%emt 0:00:00]} f5 {[%emt 0:00:00]} 51. Kf3 {[%emt 0:01:07]} d4 {[%emt 0:03:30]} 52. h5 {[%emt 0:00:43]} f4 {[%emt 0:01:52]} 53. g6 {[%emt 0:00:38]} hxg6 {[%emt 0:00:55]} 54. h6 {[%emt 0:00:04] Intending h7 and mate.} d3 {[%emt 0:01:11]} 55. h7 {[%emt 0:00:28] White mates.} Kd4 {[%emt 0:00:33]} 56. Rh1 {[%emt 0:02:06]} Rh8 {[%emt 0:00:20]} 57. Kxf4 {[%emt 0:01:06]} d2 {[%emt 0:00:28]} 58. Kg5 {[%emt 0:00:14]} Ke3 {[%emt 0:00:40]} 59. Kxg6 {[%emt 0:00:18]} Rc8 {[%emt 0:00:32]} 60. h8=Q {[%emt 0:00:13][%mdl 64] Promotion} Rxh8 {[%emt 0:00:17]} 61. Rxh8 {[%emt 0:00:05]} d1=Q {[%emt 0:00:06]} 62. Re8+ {[%emt 0:00:12]} ({Stronger than} 62. c8=R Qb1+ 63. Kf6 Qxa2 $11) 62... Kf4 {[%emt 0:00:08]} 63. c8=Q {[%emt 0:00:27]} ({Weaker is} 63. c8=R Qd6+ 64. Kf7 Qd2 $11) 63... Qd3+ {[%emt 0:00:09]} 64. Kh6 {[%emt 0:00:41] Weighted Error Value: White=0.33/Black=0.33} 1-0

[Event "Israeli Team-ch 2023"]
[Site "Petah Tikva"]
[Date "2023.02.10"]
[Round "7.33"]
[White "Kupervaser, Erez"]
[Black "Mikhalevski, Alexander"]
[Result "1/2-1/2"]
[ECO "C45"]
[WhiteElo "2293"]
[BlackElo "2414"]
[Annotator "TA"]
[PlyCount "45"]
[EventDate "2023.01.13"]
[EventCountry "ISR"]
[SourceTitle "playchess.com"]
[Source "ChessBase"]
[SourceQuality "1"]
[TimeControl "40/5400+30:1800+30"]

{[%evp 14,45,-6,-29,-35,-33,-35,-31,-2,-92,-90,-85,-27,-21,-26,-10,9,7,9,10,17,15,13,0,4,-31,17,10,9,0,9,0,0,-19]} 1. e4 {[%emt 0:03:33]} e5 {[%emt 0:00:07]} 2. Nf3 {[%emt 0:00:07]} Nc6 {[%emt 0:00:05]} 3. d4 {[%emt 0:00:25]} exd4 {[%emt 0:00:10]} 4. Nxd4 {[%emt 0:00:07]} Nf6 {[%emt 0:00:08]} 5. Nxc6 {[%emt 0:00:19]} bxc6 {[%emt 0:00:09]} 6. e5 {[%emt 0:00:06]} Qe7 {[%emt 0:00:12]} 7. Qe2 {[%emt 0:00:06]} Nd5 {[%emt 0:00:06]} 8. h4 {[%emt 0:00:43]} Qe6 {[%emt 0:05:51] C45: Scotch Game.} 9. Nd2 $1 {[%emt 0:02:25] The main line 9.Nd2 scores better than 9.g3.} a5 {[%emt 0:02:38]} 10. g3 {[%emt 0:02:25] [#]} Bc5 $146 {[%emt 0:22:12] Black is slightly better.} (10... Nb4 $5 {[%cal Rb4c2]} 11. Nf3 Nxa2 $11) ({Predecessor:} 10... Nb4 11. Nf3 Ba6 12. c4 Qg6 13. Kd1 c5 14. a3 Nc6 15. Bd2 Be7 16. Bc3 O-O {0-1 Mchedlishvili,M (2595)-Sargissian,G (2694) Sharjah Masters 5th 2022 (9)}) 11. Nb3 {[%emt 0:23:12]} (11. c4 $11) 11... Bb6 $17 {[%emt 0:04:52]} 12. c4 {[%emt 0:07:57] [#]} a4 {[%emt 0:00:58]} (12... Ba6 $1 $17) 13. Bh3 $11 {[%emt 0:02:20]} (13. cxd5 $2 {too greedy.} Qxd5 14. Nd2 Qxh1 $19) 13... Qe7 {[%emt 0:00:59]} 14. Nd2 {[%emt 0:04:59][%cal Bb3d2,Bd2f3,Bf3g5][%mdl 32]} Nb4 {[%emt 0:03:45][%cal Bd5b4,Bb4a6,Ba6c5][%mdl 32] And now ...Nc2+ would win.} (14... O-O {keeps more tension.} 15. cxd5 Ba6 16. Qe4 cxd5 17. Qxd5 Rfb8) 15. Nf3 {[%emt 0:01:48]} O-O {[%emt 0:11:17]} 16. O-O {[%emt 0:09:42]} f6 {[%emt 0:08:04]} 17. a3 {[%emt 0:06:42]} Na6 {[%emt 0:00:15]} 18. Qc2 {[%emt 0:00:03]} Nc5 {[%emt 0:02:52]} 19. exf6 {[%emt 0:08:13][%mdl 64] [#] Remove Defender} (19. Bf4 $5 {[%cal Rf1e1]}) 19... Qxf6 {[%emt 0:00:11]} (19... Qe4 $15 20. Qxe4 Nxe4) 20. Ng5 $1 {[%emt 0:02:34][%csl Gg5][%cal Rc2h7] The position is equal.} g6 {[%emt 0:00:17]} 21. Be3 {[%emt 0:01:49] Threatens to win with Rad1.} d6 {[%emt 0:09:09]} 22. Bxc8 {[%emt 0:00:13]} Raxc8 {[%emt 0:01:08]} 23. Rae1 {[%emt 0:08:17] Weighted Error Value: White=0.13 (very precise) /Black=0.11 (very precise)} 1/2-1/2